Cogmind - Beta 15 @@@ ROGUE MODE // 2025.09.09 @ 12:33:45 Player: Raisen Result: Self-destructed Performance ------------- Evolutions (1) 500 Regions Visited (2) 400 Robots Destroyed (7) 35 Value Destroyed (86) 86 Prototype IDs (0) 0 Alien Tech Used (0) 0 Bonus (0) 0 TOTAL SCORE: 1021 Bonus ------- None Cogmind --------- Core Integrity 135/400 Matter 147/300 Energy 100/100 System Corruption 0% Temperature Cool (2) Movement Flying (40) Location -9/Materials Parts ------- > --- POWER (1) -------- (None) > --- PROPULSION (4) --- Flight Unit > --- UTILITY (2) ------ Signal Interpreter > --- WEAPON (2) ------- (None) > --- INVENTORY (5) ---- Flight Unit Flight Unit Flight Unit Heat Sink Shield Generator Peak State ------------ > --- POWER ------------ Light Ion Engine > --- PROPULSION ------- VTOL Module VTOL Module VTOL Module VTOL Module > --- UTILITY ---------- Visual Processing Unit Shield Generator > --- WEAPON ----------- Light Assault Rifle Mining Claw > --- INVENTORY -------- Flight Unit Flight Unit Heat Sink [Rating: 15] Favorites ----------- Power Light Ion Engine Engine Light Ion Engine Propulsion VTOL Module Hover Unit Hover Unit Flight Unit VTOL Module Utility Visual Processing Unit Device Shield Generator Storage Small Storage Unit Processor Visual Processing Unit Weapon Light Assault Rifle Energy Gun Small Laser Ballistic Gun Light Assault Rifle Slashing Weapon Mining Claw Special Melee Weapon Datajack Build | -11 -10 -9 ------- Run | Yrd Mat Mat Slots Evolved 2 | . . 2 Power . | . . . Propulsion 2 | . . 2 Utility . | . . . Weapon . | . . . Parts Attached 24 | 4 11 9 Power 2 | 1 1 . Engine 2 | 1 1 . Core . | . . . Reactor . | . . . Propulsion 12 | . 7 5 Treads . | . . . Leg . | . . . Wheel . | . . . Hover 3 | . 3 . Flight 9 | . 4 5 Utility 6 | 1 2 3 Device 2 | . 1 1 Storage 2 | 1 . 1 Processor 2 | . 1 1 Hackware . | . . . Protection . | . . . Artifact . | . . . Weapon 4 | 2 1 1 Energy Gun 1 | 1 . . Energy Cannon . | . . . Ballistic Gun 1 | 1 . . Ballistic Cannon . | . . . Launcher . | . . . Special Weapon . | . . . Impact Weapon . | . . . Slashing Weapon 1 | . 1 . Piercing Weapon . | . . . Special Melee Weapon 1 | . . 1 Unidentified Prototypes . | . . . Parts Lost 9 | . 1 8 Power 1 | . . 1 Propulsion 4 | . . 4 Utility 1 | . . 1 Weapon 3 | . 1 2 Highest Loss Streak 8 | . 1 8 To Critical Strikes . | . . . Average Backups 2 | . 2 4 Power . | . . . Propulsion 1 | . 2 2 Utility . | . . 1 Weapon . | . . . Tool/Special . | . . . Unused Backups 1 | . . 1 Power . | . . . Propulsion . | . . . Utility 1 | . . 1 Weapon . | . . . Tool/Special . | . . . Average Slot Usage (%) 75 | . 74 76 Engine 7 | . 7 7 Hover 4 | . 5 . Flight 20 | . 15 33 Device 5 | . 5 7 Processor 12 | . 12 11 Energy Gun 4 | . 6 . Ballistic Gun 10 | . 14 1 Slashing Weapon 6 | . 5 8 Special Melee Weapon 1 | . . 5 Peak Build Rating 15 | 2 11 15 Average Rating 7 | 1 7 9 On Entrance 4 | . 2 11 Naked Turns . | . . . Heaviest Build 11 | 2 8 11 Greatest Support 16 | 3 12 16 Greatest Overweight (x) . | . . . Average Overweight (x) . | . . . Largest Inventory Capacity 8 | 8 5 8 Average Capacity 5 | 5 5 5 Most Carried 5 | . 5 5 Average Carried 2 | . 2 4 Final Capacity 5 | 5 5 5 Final Carried 5 | . 5 5 Class Distribution -------------------- 46% | Mutant 46% | Sprinter 7% | Scavenger-Mutant Dominant Class ---------------- Sprinter | -10/Materials Sprinter | -9/Materials Resources | -11 -10 -9 ----------- Run | Yrd Mat Mat Matter Collected 289 | 240 49 . Remotely . | . . . Salvage Created 125 | . 71 54 Parts 12 | . 8 4 Haulers Intercepted . | . . . Recyclers Shooed . | . . . Parts Field Recycled . | . . . Retrieved Matter . | . . . Parts Self-Destructed . | . . . Prevented . | . . . Kills | -11 -10 -9 ------- Run | Yrd Mat Mat Combat Hostiles Destroyed 6 | . 3 3 Melee 3 | . . 3 Guns 3 | . 3 . Classes Destroyed 2 | . 2 . Watcher 1 | . 1 . Swarmer 6 | . 3 3 Best Kill Streak 3 | . 3 2 Combat Bots Only 3 | . 3 2 Max Kills in Single Turn 2 | . 2 1 Gunslinging . | . . . Exploded . | . . . Melee 1 | . . 1 Uniques/NPCs Destroyed . | . . . Combat | -11 -10 -9 -------- Run | Yrd Mat Mat Hostile Shots Fired 92 | . 38 54 Missed 42 | . 19 23 Hits 50 | . 19 31 Projectile 50 | . 19 31 Critical Strikes 1 | . . 1 Damage Taken 737 | . 233 504 Core 333 | . 68 265 Absorbed by Shields . | . . . Core Remaining (%) 86 | 100 72 . Volleys Fired 10 | . 10 . Largest 2 | . 2 . Hottest 60 | . 60 . Shots Fired 20 | . 20 . Gun 20 | . 20 . Cannon . | . . . Launcher . | . . . Special . | . . . Kinetic 10 | . 10 . Thermal 10 | . 10 . Explosive . | . . . Electromagnetic . | . . . Robot Hit Streak 3 | . 3 . Robot Miss Streak 2 | . 2 . Penetration Max . | . . . Secondary Targets 1 | . 1 . Max Gunslinging Chain 1 | . 1 . Shots Hit Robots 16 | . 9 7 Core Hits 8 | . 5 3 Critical Kills . | . . . Critical Parts Destroyed . | . . . Critical Strikes . | . . . Melee Attacks 16 | . . 16 Impact . | . . . Slashing 14 | . . 14 Piercing . | . . . Sneak Attacks 1 | . . 1 Combat Hostiles . | . . . Follow-up Attacks . | . . . Damage Inflicted 194 | . 95 99 Guns 95 | . 95 . Cannons . | . . . Explosions . | . . . Melee 99 | . . 99 Ramming . | . . . Kinetic 41 | . 41 . Thermal 54 | . 54 . Explosive . | . . . Electromagnetic . | . . . Impact . | . . . Slashing 99 | . . 99 Piercing . | . . . Highest Corruption 2 | . 2 . Average Corruption 2 | . 2 . Corruption Purged . | . . . Corruption Blocked . | . . . Effects 5 | . 5 . Message Errors 1 | . 1 . Matter Fused 2 | . 2 . Heat Flow Errors 1 | . 1 . Data Loss (minor) 1 | . 1 . Overload Shots . | . . . Overflow Damage . | . . . Projectiles . | . . . Explosions . | . . . Melee . | . . . Knockbacks . | . . . Impact . | . . . Kinetic . | . . . Secondary . | . . . Self-Inflicted Damage . | . . . Shots . | . . . Rammed . | . . . Targets Rammed . | . . . Kicked . | . . . Crushed . | . . . Highest Temperature 235 | . 235 . Average Temperature 21 | . 21 . Received Heat Transfer 93 | . 66 27 Siege Activations . | . . . Martial Activations . | . . . Shielding Activations . | . . . Robots Disrupted . | . . . Combat Hostiles . | . . . Robots Corrupted . | . . . Combat Hostiles . | . . . Parts Fried . | . . . Impact Corruptions . | . . . Robots Melted . | . . . Combat Hostiles . | . . . Parts Melted . | . . . Heat Transferred 125 | . 125 . Parts Sabotaged . | . . . Parts Stolen . | . . . Parts Stripped . | . . . Power Chain Reactions . | . . . Alert | -11 -10 -9 ------- Run | Yrd Mat Mat Maximum Alert Level . | . . . Low Security (%) 100 | 100 100 100 Level 1 . | . . . Level 2 . | . . . Level 3 . | . . . Level 4 . | . . . Level 5 . | . . . High Security . | . . . Max Security . | . . . Peak Influence 159 | . 159 77 Initial 38 | . . 38 Average 71 | . 89 41 Influence Increases 342 | . 239 103 Destroy 0b10 Robot/C 120 | . 60 60 Destroy 0b10 Robot/NC 5 | . 5 . Destroy Leader 22 | . 12 10 Successful Hack 75 | . 57 18 Disable Machine 15 | . . 15 Partial Spotted 15 | . 15 . Lose Combat Pursuer 90 | . 90 . Influence Decreases 331 | . 147 184 Entered New Map 54 | . . 54 Time Decay 187 | . 137 50 Lost Part 90 | . 10 80 Squads Dispatched 1 | . . 1 Investigation 1 | . . 1 Extermination . | . . . Reinforcement . | . . . Assault . | . . . Garrison . | . . . Intercept . | . . . Searches Triggered . | . . . Construction Impeded . | . . . Haulers Reinforced . | . . . Active Scanning Responses . | . . . Cargo Convoy Interrupts . | . . . Stealth | -11 -10 -9 --------- Run | Yrd Mat Mat Distress Signals 1 | . 1 . Communications Jammed . | . . . Distress Signals . | . . . Times Spotted 26 | . 14 12 Peak Tracking Total 8 | . 4 8 Tactical Retreats 4 | . 4 . Traps | -11 -10 -9 ------- Run | Yrd Mat Mat Traps Triggered 3 | . 2 1 Indirectly . | . . . Trap Hack Attempts . | . . . Triggered . | . . . Disarmed . | . . . Reprogrammed . | . . . Reused . | . . . Traps Extracted . | . . . Installed . | . . . Triggered . | . . . Machines | -11 -10 -9 ---------- Run | Yrd Mat Mat Machines Disabled 1 | . . 1 Max in Single Turn 1 | . . 1 Machines Repaired . | . . . Machines Dismantled . | . . . Machines Sabotaged . | . . . Overloaded Fab Kills . | . . . Hacking | -11 -10 -9 --------- Run | Yrd Mat Mat Machines Accessed 10 | . 8 2 Terminals 10 | . 8 2 Fabricators . | . . . Repair Stations . | . . . Recycling Units . | . . . Scanalyzers . | . . . Garrison Access . | . . . Total Hacks 28 | . 23 5 Successful 17 | . 15 2 Failed 11 | . 8 3 Catastrophic 1 | . 1 . Database Lockouts . | . . . Manual 21 | . 18 3 Terminals 28 | . 23 5 Fabricators . | . . . Repair Stations . | . . . Recycling Units . | . . . Scanalyzers . | . . . Garrison Access . | . . . Terminal Hacks 9 | . 8 1 Level Access Points 1 | . 1 . Terminal Index 1 | . 1 . Alert Level 1 | . 1 . Locate Traps 1 | . 1 . Patrol Status 1 | . 1 . Zone Layout 4 | . 3 1 Fabricator Hacks . | . . . Repair Station Hacks . | . . . Recycling Unit Hacks . | . . . Scanalyzer . | . . . Garrison Access Hacks . | . . . Unauthorized Hacks 8 | . 7 1 Terminals 8 | . 7 1 Assimilate 1 | . 1 . Botnet 7 | . 6 1 Fabricators . | . . . Repair Stations . | . . . Recycling Units . | . . . Scanalyzers . | . . . Garrison Access . | . . . Data Cores Recovered . | . . . Used . | . . . Hacking Detections 8 | . 6 2 Full Trace Events . | . . . Feedback Events . | . . . Feedback Blocked . | . . . Robot Schematics Acquired . | . . . Robots Built . | . . . Authchips . | . . . Time . | . . . Total Robot Build Rating . | . . . Part Schematics Acquired . | . . . Parts Built . | . . . Authchips . | . . . Time . | . . . Total Part Build Rating . | . . . Parts Repaired . | . . . Time . | . . . Parts Recycled . | . . . Recycled Matter . | . . . Retrieved Matter . | . . . Retrieved Components . | . . . Parts Scanalyzed . | . . . Part Schematics Acquired . | . . . Parts Damaged . | . . . Bothacking | -11 -10 -9 ------------ Run | Yrd Mat Mat Used RIF Installer . | . . . Robots Hacked 1 | . . 1 Non-combat . | . . . Combat 1 | . . 1 Robot Hacks Applied 1 | . . 1 parse_system 1 | . . 1 Relay Couplers Released . | . . . Fabnet Peak Effective % . | . . . Robots Rewired . | . . . Allies Hacked . | . . . Hacks Repelled . | . . . Allies | -11 -10 -9 -------- Run | Yrd Mat Mat Total Allies 1 | . 1 . Largest Group 1 | . 1 . Highest-Rated Group 10 | . 10 . Highest-Rated Ally 10 | . 10 . Total Orders . | . . . Ally Attacks . | . . . Total Damage . | . . . Kills . | . . . Allies Corrupted . | . . . Allies Melted . | . . . Intel | -11 -10 -9 ------- Run | Yrd Mat Mat Active Infowar (turns) 357 | . 278 79 Optics 299 | . 278 21 Sensors 58 | . . 58 Robot Analysis Total . | . . . Derelict Logs Recovered . | . . . Drone Launches . | . . . Drone Recoveries . | . . . Exploration | -11 -10 -9 ------------- Run | Yrd Mat Mat Turns Passed 445 | 28 306 111 Spaces Moved 837 | 42 639 156 Core 72 | 42 29 1 Treads . | . . . Legs . | . . . Wheels . | . . . Hover 135 | . 135 . Flight 630 | . 475 155 Fastest Speed 26 | 50 32 26 Average Speed 38 | 50 39 30 Slowest Speed 60 | 50 60 50 Overloaded Moves . | . . . Propulsion Burnouts . | . . . Robots Hopped 2 | . 1 1 Potential Cave-ins . | . . . Cave-ins Triggered . | . . . Exploration Rate (%) 37 | 4 88 19 Regions Visited 2 Branch Regions . Pre-discovered Areas . | . . . Known Exits Taken 1 | . 1 . Unknown Exits Taken 1 | 1 . . Scrap Searched . | . . . Spaces Dug . | . . . Terrain Destroyed . | . . . Melee . | . . . Projectile . | . . . AOE . | . . . Terrain Rammed . | . . . Walls Destroyed . | . . . Machines Disabled . | . . . Actions | -11 -10 -9 --------- Run | Yrd Mat Mat Total 911 | 47 674 190 Wait 5 | . 3 2 Move 831 | 41 636 154 Hop 2 | . 1 1 Pick Up 7 | . 7 . Fast Attach 14 | 4 5 5 Attach 8 | . 3 5 Detach 4 | . . 4 Swap 4 | . 4 . Drop 10 | 2 5 3 Fire 10 | . 10 . Melee 16 | . . 16 Ram . | . . . Kick . | . . . Crush . | . . . Escape Stasis . | . . . Rewire . | . . . Trap . | . . . Miscellaneous . | . . . Route ------- -11/Scrapyard -10/Materials (discovered 4 exits: *Mat x3 / [*Min]) -9/Materials History --------- Turn | Location | Event 12 | -11/Scrapyard | Discovered new exit (range 15) 29 | -11/Scrapyard | Entered Materials 95 | -10/Materials | Discovered new exit (range 17) 158 | -10/Materials | Discovered new exit (range 18) 249 | -10/Materials | Discovered new exit (range 17) 327 | -10/Materials | Identified exit to Materials 335 | -10/Materials | Entered another Materials area 335 | -9/Materials | Evolved 2 slots: Propulsion x2 418 | -9/Materials | Core integrity fell below 50% 446 | -9/Materials | Self-destructed Last Messages --------------- 00417_ VTOL Module destroyed. 00417_ Sensor Array destroyed. 00417_ U-05 Engineer destroyed. 00417_ VTOL Module destroyed. 00419_ The unstable cave ceiling collapses. 00423_ Acquired Flight Unit. 00426_ U-05 Engineer builds a Wall. 00428_ K-01 Serf collects debris. 00429_ U-05 Engineer builds a Wall. 00430_ R-06 Scavenger collects Lgt. Assault Rifle. 00430_ U-05 Engineer builds a Wall. 00431_ The unstable cave ceiling collapses. 00431_ Connecting with Terminal... >>Layout(Zone) Retrieving Zone 3P layout... Downloaded map data. 00432_ T-07 Excavator is excavating. 00433_ K-01 Serf collects debris. 00434_ U-05 Engineer builds a Wall. Map ----- +----------------------------------------------------+ | | | | | | | | | | | ????????????????????????????#????????????? | | ???????????????????????????? ????????????? | | ??????????????????????????? ????????????? | | ??????????????????????????" ????????????? | | ?????????????????????????"" ?????????????? | | ?????????????????????????"" ??????? ????? | | ?????????????????????????" ?????? ????? | | ????????????????????????? ?????? ?????? | | ????????????????????????? ????? #??????? | | ?????????????????########"##### #??????? | | ?????????????????? #??????? | | ???????????????????? +??????? | | ?????????????????????? ????????? | | ??????????????########## #?????????????? | | ??????????????# """ # #?????????????? | | ???# ## T # """"" # #?????????????? | | ??## ## # """"" # ##########+##?? | | ??# # # """"" #s ? | | ??# + # """ s/ ? | | ??# # # s# ? | | ??# # # @ # ##########+#??? | | ??# # # # #?????????????? | | ??# #####?### # #?????????????? | | ??# #???# ############ #?????????????? | | ??# ######## ## #?????????????? | | ??# ## # """ ## #?????????????? | | ?## ## """ # """ ## ##????????????? | | ?# # """ # """ # ### ###??????? | | ?# # """ # # #?????? | | ?# " + # "" + #?????? | | ?# # # "T # #?????? | | ?# # # "" # ##### ##?????? | | ?### ###/##### | ### ###?????#??????? | | ???# #?# #### ###### ######?????????? | | ???# #?# # ## # #?????????? | | ???# #?# + # # #?????????? | | ???# #?# # | # # #?????????? | | ?### ### # # #?????????? | | ## # # #?????????? | | #" # # # #?????????? | | #" """ # # # #?????????? | | #" "R ### # # # # # #?????????? | | #T """ #?# #### # #?????????? | | #" ####### # # [##+###?????????? | | #" ######### ?????????? | +----------------------------------------------------+ Best States ------------- Heat Dissipation 28 Energy Generation 10 Energy Capacity 125 Matter Stores 300 Matter Capacity 300 Sight Range 18 Robot Scan Range 14 Terrain Scan Density 10 Evasion (%) 64 Item Schematics ----------------- None Robot Schematics ------------------ None Fabricated ------------ Nothing Repaired ---------- Nothing Alien Tech Used ----------------- None Achievements -------------- None Challenges ------------ None Game ------ Seed EncryptedChargeMultirail Manual? 0 Play Time 00:14:42 Cumulative 13.0 hours Start 2025.09.09 @ 12:21:53 End 2025.09.09 @ 12:33:45 Sessions 1 Manual Loads 0 Difficulty Rogue Special Mode None Game No. 24 Rogue 24 Adventurer 0 Explorer 0 Win Type - Total 0 Types 0/0/0/0/0/0/0/0/0/0 Lore% 9 Gallery% 18 Achievement% 20 Wizard Run 0 Options --------- Layout 1 ASCII 0 Keyboard 0 Movement Mouse Keybinds 0 Fullscreen 2 Font 24/Smallcaps Map View 50x35 Zoom Use 0% Tactical HUD 1 Map Filters NONE Filters NONE Steam 1 RUN: b8078a2b-3516-4ac4-ac7e-86bfb146cfe6